fUSD/lending_fUSD_20251103
["ID","MTS","AMOUNT","RATE_DAILY","PERIOD"]
[392970160,1762187858183,-151.328371,0.00015,2]
[392970161,1762187858215,-275.789944,0.00015,2]
[392970162,1762187858247,-151.328371,0.00015,2]
[392970163,1762187858278,-151.328371,0.00015,2]
[392970164,1762187858311,-275.789944,0.00015,2]
[392970165,1762187858341,-151.0,0.00015,2]
[392970166,1762187858380,-151.0,0.00015,2]
[392970167,1762187858413,-275.789944,0.00015,2]
[392970168,1762187858446,-236.023466,0.00015,2]
[392970169,1762187858478,-190.614927,0.00015,2]
[392970170,1762187858511,-190.614927,0.00015,2]
[392970171,1762187858544,-190.614927,0.00015,2]
[392970172,1762187858578,-190.614927,0.00015,2]
[392970173,1762187858610,-235.568692,0.00015,2]
[392970174,1762187858641,-235.568692,0.00015,2]
[392970175,1762187858674,-235.568692,0.00015,2]
[392970176,1762187858706,-151.0,0.00015,2]
[392970177,1762187858738,-235.568692,0.00015,2]
[392970178,1762187858770,-151.0,0.00015,2]
[392970179,1762187858802,-151.0,0.00015,2]
[392970180,1762187858834,-206.006682,0.00015,2]
[392970181,1762187858870,-219.791894,0.00015,2]
[392970182,1762187858904,-151.0,0.00015,2]
[392970183,1762187858937,-151.0,0.00015,2]
[392970184,1762187858969,-151.0,0.00015,2]
[392970185,1762187859001,-151.0,0.00015,2]
[392970186,1762187859032,-151.0,0.00015,2]
[392970187,1762187859063,-151.0,0.00015,2]
[392970188,1762187859093,-151.0,0.00015,2]
[392970189,1762187859126,-151.0,0.00015,2]
[392970190,1762187859156,-151.0,0.00015,2]
[392970191,1762187859186,-151.0,0.00015,2]
[392970192,1762187859221,-151.0,0.00015,2]
[392970193,1762187859253,-224.396973,0.00015,2]
[392970194,1762187859284,-224.396973,0.00015,2]
[392970195,1762187859313,-224.396973,0.00015,2]
[392970196,1762187859347,-224.396973,0.00015,2]
[392970197,1762187859375,-154.307312,0.00015,2]
[392970198,1762187859405,-151.0,0.00015,2]
[392970199,1762187859436,-151.0,0.00015,2]
[392970200,1762187859465,-151.0,0.00015,2]
[392970201,1762187859494,-151.0,0.00015,2]
[392970202,1762187859522,-151.0,0.00015,2]
[392970203,1762187859550,-151.0,0.00015,2]
[392970204,1762187859577,-2000.0,0.00015,2]
[392970205,1762187859605,-1000.0,0.00015,2]
[392970206,1762187859633,-1000.0,0.00015,2]
[392970207,1762187859662,-212.857872,0.00015,2]
[392970208,1762187859694,-578.922901,0.00015,2]
[392970209,1762187859723,-212.857872,0.00015,2]
[392970210,1762187859752,-578.922901,0.00015,2]
[392970211,1762187859783,-212.857872,0.00015,2]
[392970212,1762187859810,-578.922901,0.00015,2]
[392970213,1762187859840,-212.857872,0.00015,2]
[392970214,1762187859871,-578.922901,0.00015,2]
[392970215,1762187859901,-325.487635,0.00015,2]
[392970216,1762187859930,-151.0,0.00015,2]
[392970217,1762187859958,-893.11000058,0.00015,2]
[392970218,1762187859987,-151.0,0.00015,2]
[392970219,1762187860017,-325.487635,0.00015,2]
[392970220,1762187860046,-151.0,0.00015,2]
[392970221,1762187860075,-151.0,0.00015,2]
[392970222,1762187860104,-325.487635,0.00015,2]
[392970223,1762187860133,-211.711258,0.00015,2]
[392970224,1762187860161,-151.0,0.00015,2]
[392970225,1762187860189,-325.487635,0.00015,2]
[392970226,1762187860217,-151.0,0.00015,2]
[392970227,1762187860248,-1988.176206,0.00015,2]
[392970228,1762187860281,-1988.176206,0.00015,2]
[392970229,1762187860311,-1988.176206,0.00015,2]
[392970230,1762187860340,-151.0,0.00015,2]
[392970231,1762187860370,-151.0,0.00015,2]
[392970232,1762187860399,-238.916282,0.00015,2]
[392970233,1762187860427,-238.916282,0.00015,2]
[392970234,1762187860454,-238.916282,0.00015,2]
[392970235,1762187860483,-151.0,0.00015,2]
[392970236,1762187860511,-238.916282,0.00015,2]
[392970237,1762187860672,-198.171581,0.00015,2]
[392970238,1762187860705,-198.171581,0.00015,2]
[392970239,1762187860735,-198.171581,0.00015,2]
[392970240,1762187860764,-151.0,0.00015,2]
[392970241,1762187860793,-198.171581,0.00015,2]
[392970242,1762187860822,-151.0,0.00015,2]
[392970243,1762187860852,-151.0,0.00015,2]
[392970244,1762187860881,-183.48159925,0.00015,2]
[392970245,1762187860910,-151.0,0.00015,2]
[392970246,1762187860940,-151.0,0.00015,2]
[392970247,1762187860970,-151.0,0.00015,2]
[392970248,1762187860999,-151.0,0.00015,2]
[392970249,1762187861030,-151.0,0.00015,2]
[392970250,1762187861060,-151.0,0.00015,2]
[392970251,1762187861089,-151.0,0.00015,2]
[392970252,1762187861119,-255.916062,0.00015,2]
[392970253,1762187861149,-151.0,0.00015,2]
[392970254,1762187861179,-151.0,0.00015,2]
[392970255,1762187861208,-151.0,0.00015,2]
[392970256,1762187861236,-154.627229,0.00015,2]
[392970257,1762187861265,-151.0,0.00015,2]
[392970258,1762187861295,-151.0,0.00015,2]
[392970259,1762187861325,-151.0,0.00015,2]
[392970260,1762187861355,-151.0,0.00015,2]
[392970261,1762187861385,-151.0,0.00015,2]
[392970262,1762187861416,-151.0,0.00015,2]
[392970263,1762187861447,-151.0,0.00015,2]
[392970264,1762187861476,-151.0,0.00015,2]
[392970265,1762187861505,-151.0,0.00015,2]
[392970266,1762187861534,-151.0,0.00015,2]
[392970267,1762187861563,-152.281979,0.00015,2]
[392970268,1762187861593,-151.0,0.00015,2]
[392970269,1762187861624,-1368.063776,0.00015,2]
[392970270,1762187861653,-151.0,0.00015,2]
[392970271,1762187861687,-1368.063776,0.00015,2]
[392970272,1762187861718,-268.240452,0.00015,2]
[392970273,1762187861748,-151.0,0.00015,2]
[392970274,1762187861778,-268.240452,0.00015,2]
[392970275,1762187861811,-1368.063776,0.00015,2]
[392970276,1762187861840,-151.0,0.00015,2]
[392970277,1762187861871,-1368.063776,0.00015,2]
[392970278,1762187861902,-268.240452,0.00015,2]
[392970279,1762187861931,-300.0,0.00015068,2]
[392970280,1762187861961,-195.0,0.00015103,2]
[392970281,1762187861992,-166.66,0.0001519,2]
[392970282,1762187862020,-300.0,0.00015259,2]
[392970283,1762187862049,-283.5154461,0.00015259,2]
[392970284,1762187862079,-193.0,0.00015261,2]
[392970285,1762187862108,-1000.0,0.00015321,2]
[392970286,1762187862137,-500.0,0.00015321,2]
[392970287,1762187862166,-672.44815369,0.0001533,2]
[392970288,1762187862194,-1852.42,0.00015353,2]
[392970289,1762187862223,-883.46932817,0.00015389,2]
[392970290,1762187862251,-283.48315436,0.00015421,2]
[392970291,1762187862284,-168.0,0.00015466,2]
[392970292,1762187862313,-239.21,0.00015479,2]
[392970293,1762187862343,-500.0,0.00015521,2]
[392970294,1762187862374,-1017.1336676,0.00015521,2]
[392970295,1762187862403,-1000.0,0.00015521,2]
[392970296,1762187862430,-513.7537043,0.00015521,2]
[392970297,1762187862459,-339.29,0.00015532,2]
[392970298,1762187862487,-10014.68,0.00015597,2]
[392970299,1762187862518,-3880.0,0.00015613,2]
[392970300,1762187862546,-200.0,0.00015643,2]
[392970301,1762187862573,-1000.0,0.00015669,2]
[392970302,1762187862602,-166.66,0.00015691,2]
[392970303,1762187862631,-1600.0,0.00015713,2]
[392970304,1762187862667,-168.0,0.00015718,2]
[392970305,1762187862700,-3880.0,0.00015752,2]
[392970306,1762187862730,-317.54,0.00015791,2]
[392970307,1762187862759,-200.0,0.00015799,2]
[392970308,1762187862788,-477.5520043,0.00015813,2]
[392970309,1762187862817,-1500.0,0.00015868,2]
[392970310,1762187862849,-326.41,0.00015871,2]
[392970311,1762187862881,-255.0,0.00015923,2]
[392970312,1762187862913,-168.0,0.00015937,2]
[392970313,1762187862945,-3880.0,0.00015944,2]
[392970314,1762187862974,-200.0,0.00015957,2]
[392970315,1762187863002,-301.42904761,0.00016068,2]
[392970316,1762187863031,-291.25,0.00016109,2]
[392970317,1762187863060,-195.0,0.00016169,2]
[392970318,1762187863088,-300.0,0.00016169,2]
[392970319,1762187863122,-252.74,0.00016169,2]
[392970320,1762187863151,-181.18711399,0.00016169,2]
[392970321,1762187863181,-1680.0,0.00016169,2]
[392970322,1762187863212,-168.0,0.00016169,2]
[392970323,1762187863240,-300.0,0.0001617,2]
[392970324,1762187863271,-250.0,0.0001617,2]
[392970325,1762187863304,-195.0,0.0001617,2]
[392970326,1762187863334,-166.66,0.00016192,2]
[392970327,1762187863368,-168.0,0.00016228,2]
[392970328,1762187863400,-239.21,0.00016253,2]
[392970329,1762187863433,-3880.0,0.0001626,2]
[392970330,1762187863468,-168.0,0.00016288,2]
[392970331,1762187863504,-168.0,0.00016355,2]
[392970332,1762187863537,-500.0,0.00016387,2]
[392970333,1762187863569,-300.0,0.0001639,2]
[392970334,1762187863599,-250.0,0.0001639,2]
[392970335,1762187863626,-278.27319463,0.0001639,2]
[392970336,1762187863657,-420.0,0.00016416,2]
[392970337,1762187863687,-629.63713841,0.00016416,2]
[392970338,1762187863716,-552.22068835,0.00016438,2]
[392970339,1762187863745,-300.0,0.00016438,2]
[392970340,1762187863775,-3030.36,0.00016438,2]
[392970341,1762187863946,-500.0,0.00016438,2]
[392970342,1762187863980,-195.0,0.00016499,2]
[392970343,1762187864013,-300.0,0.00016499,2]
[392970344,1762187864047,-3880.0,0.00016525,2]
[392970345,1762187864077,-300.0,0.00016555,2]
[392970346,1762187864106,-300.0,0.00016555,2]
[392970347,1762187864135,-300.0,0.00016555,2]
[392970348,1762187864164,-123778.4933606,0.00016556,2]
[392970349,1762187864195,-168.0,0.00016565,2]
[392970350,1762187864223,-504.98640872,0.00016573,2]
[392970351,1762187864256,-3880.0,0.0001658,2]
[392970352,1762187864289,-168.0,0.00016581,2]
[392970353,1762187864320,-168.0,0.00016615,2]
[392970354,1762187864352,-271.75720946,0.00016675,2]
[392970355,1762187864382,-300.0,0.00016675,2]
[392970356,1762187864412,-44137.744411,0.00016676,2]
[392970357,1762187864442,-166.66,0.00016694,2]
[392970358,1762187864474,-168.0,0.00016701,2]
[392970359,1762187864504,-165.57,0.00016712,2]
[392970360,1762187864537,-168.0,0.00016749,2]
[392970361,1762187864566,-170.77,0.00016834,2]
[392970362,1762187864598,-168.0,0.00016926,2]
[392970363,1762187864631,-168.0,0.0001696,2]
[392970364,1762187864661,-500.0,0.00016973,2]
[392970365,1762187864693,-500.0,0.00016973,2]
[392970366,1762187864722,-500.0,0.00016973,2]
[392970367,1762187864751,-500.0,0.00016973,2]
[392970368,1762187864787,-168.0,0.00016983,2]
[392970369,1762187864817,-264880.34,0.00016986,2]
[392970370,1762187864847,-250.0,0.00017,2]
[392970371,1762187864884,-168.0,0.0001702,2]
[392970372,1762187864915,-239.21,0.00017027,2]
[392970373,1762187864950,-168.0,0.00017062,2]
[392970374,1762187864984,-168.0,0.00017071,2]
[392970375,1762187865015,-433.0,0.00017136,2]
[392970376,1762187865048,-168.0,0.00017137,2]
[392970377,1762187865078,-166.66,0.00017195,2]
[392970378,1762187865108,-7485.826221,0.00017299,2]
[392970379,1762187865141,-1600.0,0.00017459,2]
[392970380,1762187865171,-349.3377827,0.00017521,2]
[392970381,1762187865200,-500.0,0.00017521,2]
[392970382,1762187865229,-837.91944318,0.00017534,2]
[392970383,1762187865258,-1000.0,0.00017628,2]
[392970384,1762187865285,-1874.7265369,0.00017661,2]
[392970385,1762187865317,-166.66,0.00017697,2]
[392970386,1762187865347,-2351.0,0.00017786,2]
[392970387,1762187865378,-239.21,0.00017801,2]
[392970388,1762187865407,-1670.3136035,0.00017812,2]
[392970389,1762187865436,-587.0,0.00017966,2]
[392970390,1762187865465,-500.0,0.00018082,2]
[392970391,1762187865494,-151.0,0.00018111,2]
[392970392,1762187865524,-578.922901,0.00018111,2]
[392970393,1762187865554,-578.922901,0.00018111,2]
[392970394,1762187865583,-578.922901,0.00018111,2]
[392970395,1762187865619,-578.922901,0.00018111,2]
[392970396,1762187865652,-325.487635,0.00018111,2]
[392970397,1762187865687,-151.0,0.00018111,2]
[392970398,1762187865720,-151.0,0.00018111,2]
[392970399,1762187865752,-325.487635,0.00018111,2]
[392970400,1762187865783,-151.0,0.00018111,2]
[392970401,1762187865813,-325.487635,0.00018111,2]
[392970402,1762187865844,-151.0,0.00018111,2]
[392970403,1762187865875,-325.487635,0.00018111,2]
[392970404,1762187865907,-151.0,0.00018111,2]
[392970405,1762187865940,-1988.176206,0.00018111,2]
[392970406,1762187865973,-1988.176206,0.00018111,2]
[392970407,1762187866006,-1988.176206,0.00018111,2]
[392970408,1762187866035,-151.0,0.00018111,2]
[392970409,1762187866066,-247.325573,0.00018111,2]
[392970410,1762187866097,-238.916282,0.00018111,2]
[392970411,1762187866131,-238.916282,0.00018111,2]
[392970412,1762187866161,-238.916282,0.00018111,2]
[392970413,1762187866194,-151.0,0.00018111,2]
[392970414,1762187866223,-238.916282,0.00018111,2]
[392970415,1762187866252,-198.171581,0.00018111,2]
[392970416,1762187866283,-198.171581,0.00018111,2]
[392970417,1762187866314,-198.171581,0.00018111,2]
[392970418,1762187866346,-226.308142,0.00018111,2]
[392970419,1762187866380,-198.171581,0.00018111,2]
[392970420,1762187866412,-151.0,0.00018111,2]
[392970421,1762187866443,-218.699151,0.00018111,2]
[392970422,1762187866476,-151.0,0.00018111,2]
[392970423,1762187866507,-151.0,0.00018111,2]
[392970424,1762187866537,-151.0,0.00018111,2]
[392970425,1762187866568,-167.628736,0.00018111,2]
[392970426,1762187866603,-151.0,0.00018111,2]
[392970427,1762187866633,-151.0,0.00018111,2]
[392970428,1762187866668,-151.0,0.00018111,2]
[392970429,1762187866701,-151.0,0.00018111,2]
[392970430,1762187866736,-151.0,0.00018111,2]
[392970431,1762187866771,-151.0,0.00018111,2]
[392970432,1762187866801,-151.0,0.00018111,2]
[392970433,1762187866832,-151.0,0.00018111,2]
[392970434,1762187866861,-151.0,0.00018111,2]
[392970435,1762187866890,-151.0,0.00018111,2]
[392970436,1762187866919,-151.0,0.00018111,2]
[392970437,1762187866948,-151.0,0.00018111,2]
[392970438,1762187866982,-151.0,0.00018111,2]
[392970439,1762187867027,-123778.4933606,0.00018111,2]
[392970440,1762187867063,-418.3080324,0.00018255,2]
[392970441,1762187867094,-19254.87,0.00018356,2]
[392970442,1762187867128,-44137.744411,0.00018361,2]
[392970443,1762187867158,-736.0,0.00018438,2]
[392970444,1762187867412,-239.21,0.00018575,2]
[392970445,1762187867445,-116738.53720529,0.00019,2]
[392970446,1762187867477,-37371.89591183,0.00019,2]
[392970447,1762187867849,539.43453665,0.00036873,120]
[392970448,1762187867895,500.0,0.00036873,120]
[392970449,1762187868053,543.63773801,0.00036873,120]
[392970450,1762187868172,534.96033804,0.00036873,120]
[392970451,1762187868434,516.48324829,0.00036873,120]
[392970452,1762187869982,500.0,0.00036873,120]
[392970453,1762187870182,508.53637471,0.00036873,120]
[392970454,1762187871801,508.82740248,0.00036873,120]
[392970455,1762187871839,230.53929417,0.00036873,120]
[392970456,1762187873862,500.0,0.00036873,120]
[392970460,1762187875209,500.0,0.00036873,120]
[392970461,1762187875280,500.0,0.00036873,120]
[392970462,1762187877148,500.0,0.00036873,120]
[392970463,1762187877390,504.70698002,0.00036873,120]
[392970465,1762187878869,500.0,0.00036873,120]
[392970466,1762187881010,500.0,0.00036873,120]
[392970467,1762187884396,506.47086742,0.00036873,120]
[392970468,1762187885490,500.0,0.00036873,120]
[392970469,1762187885749,500.0,0.00036873,120]
[392970470,1762187885939,500.0,0.00036873,120]
[392970471,1762187886021,536.05,0.00036873,120]
[392970472,1762187888224,508.47578793,0.00036873,120]
[392970473,1762187889667,506.92364006,0.00036873,120]
[392970474,1762187891452,500.0,0.00036873,120]
[392970475,1762187893488,200.16027426,0.00036873,120]
[392970476,1762187893917,500.0,0.00036873,120]
[392970477,1762187894039,500.0,0.00036873,120]
[392970478,1762187896072,500.57779114,0.00036873,120]
[392970479,1762187899715,500.0,0.00036873,120]
[392970481,1762187900761,571.94067027,0.00036873,120]
[392970482,1762187902954,500.0,0.00036873,120]
[392970483,1762187903221,500.0,0.00036873,120]
[392970484,1762187903476,500.0,0.00036873,120]
[392970485,1762187903741,500.0,0.00036873,120]
[392970486,1762187903988,500.0,0.00036873,120]
[392970487,1762187904277,500.0,0.00036873,120]
[392970488,1762187904320,500.0,0.00036873,120]
[392970489,1762187904538,500.0,0.00036873,120]
[392970490,1762187904574,164.00713714,0.00036873,120]
[392970491,1762187904833,635.20188019,0.00036873,120]
[392970492,1762187908723,517.76237009,0.00036873,120]
[392970493,1762187913653,503.40908549,0.00036873,120]
[392970494,1762187914619,500.0,0.00036873,120]
[392970495,1762187915440,500.0,0.00036873,120]
[392970496,1762187918817,500.0,0.00036873,120]
[392970498,1762187931037,604.56,0.00036867,120]
[392970499,1762187932096,500.0,0.00036867,120]
[392970500,1762187938331,500.0,0.00036867,120]
[392970501,1762187943552,503.08893265,0.00036867,120]
[392970506,1762187946118,500.0,0.00036867,120]
[392970507,1762187951965,500.0,0.00036867,120]
[392970508,1762187952203,500.0,0.00036867,120]
[392970509,1762187953043,517.66815483,0.00036867,120]
[392970510,1762187954990,524.95075884,0.00036867,120]
[392970511,1762187957348,225.08202329,0.00036867,120]
[392970512,1762187958028,500.0,0.00036867,120]
[392970513,1762187963820,507.88195314,0.00036867,120]
[392970514,1762187967958,500.0,0.00036867,120]
[392970516,1762187976436,500.0,0.00036867,120]
[392970517,1762187977061,518.68566928,0.00036867,120]
[392970518,1762187978254,500.0,0.00036867,120]
[392970519,1762187978990,500.0,0.00036867,120]
[392970520,1762187980286,505.84838099,0.00036867,120]
[392970523,1762187992250,500.0,0.00036867,120]
[392970524,1762187992691,500.0,0.00036867,120]
[392970525,1762187994234,300.0,0.00036867,120]
[392970526,1762187994500,513.67736664,0.00036867,120]
[392970527,1762187997749,500.0,0.00036867,120]
[392970528,1762188003634,503.4217678,0.00036867,120]
[392970529,1762188004598,500.0,0.00036867,120]
[392970530,1762188004847,196.70611567,0.00036867,120]
[392970531,1762188005527,596.4,0.00036867,120]
[392970532,1762188010278,-4544.58004132,0.000209,30]
[392970533,1762188010329,-179.53219072,0.00025825,30]
[392970534,1762188010368,-1679.99537312,0.000275,120]
[392970535,1762188010403,-1198.67,0.00027671,30]
[392970536,1762188010438,-191.0,0.00027938,120]
[392970537,1762188010475,-1269.390705,0.00028767,30]
[392970539,1762188010509,-1269.390705,0.00028767,30]
[392970540,1762188010542,-1269.390705,0.00028767,30]
[392970541,1762188010576,-1269.390705,0.00028767,30]
[392970542,1762188010609,-1269.390705,0.00028767,30]
[392970543,1762188010645,-1269.390705,0.00028767,30]
[392970544,1762188010680,-1269.390705,0.00028767,30]
[392970545,1762188010717,-1269.390705,0.00028767,30]
[392970546,1762188010752,-1269.390705,0.00028767,30]
[392970547,1762188010788,-1269.390705,0.00028767,30]
[392970548,1762188010826,-1269.390705,0.00028767,30]
[392970549,1762188010861,-1269.390705,0.00028767,30]
[392970550,1762188010900,-400.76642062,0.00029,30]
[392970552,1762188010934,-179.2038578,0.00029,30]
[392970553,1762188010971,-191.0,0.00029335,120]
[392970554,1762188011008,-151.0,0.00029899,31]
[392970555,1762188011042,-151.0,0.00029899,31]
[392970556,1762188011076,-151.0,0.00029899,31]
[392970557,1762188011109,-151.0,0.00029899,31]
[392970558,1762188011141,-151.0,0.00029899,31]
[392970559,1762188011173,-151.0,0.00029899,31]
[392970560,1762188011205,-157.241405,0.00029899,31]
[392970561,1762188011480,-151.0,0.00029899,31]
[392970562,1762188011516,-151.0,0.00029899,31]
[392970563,1762188011551,-151.0,0.00029899,31]
[392970564,1762188011588,-151.0,0.00029899,31]
[392970565,1762188011622,-151.0,0.00029899,31]
[392970566,1762188011654,-265.826164,0.00029899,31]
[392970567,1762188011686,-151.0,0.00029899,31]
[392970568,1762188011722,-151.0,0.00029899,31]
[392970569,1762188011759,-157.248362,0.00029899,31]
[392970570,1762188011793,-151.0,0.00029899,31]
[392970571,1762188011827,-151.0,0.00029899,31]
[392970572,1762188011861,-284.0238278,0.00029899,31]
[392970573,1762188011895,-151.0,0.00029899,31]
[392970574,1762188011930,-151.0,0.00029899,31]
[392970575,1762188011965,-151.0,0.0003,31]
[392970576,1762188011998,-151.0,0.0003,30]
[392970577,1762188012036,-162.46966361,0.0003,30]
[392970578,1762188012069,-238.916291,0.0003,31]
[392970579,1762188012103,-151.0,0.0003,31]
[392970580,1762188012135,-151.0,0.0003,31]
[392970581,1762188012168,-151.0,0.0003,31]
[392970582,1762188012199,-151.0,0.0003,31]
[392970583,1762188012233,-151.0,0.0003,31]
[392970584,1762188012268,-151.0,0.0003,31]
[392970585,1762188012302,-286.690597,0.0003,31]
[392970586,1762188012336,-151.0,0.0003,31]
[392970587,1762188012371,-25358.41907559,0.0003013,120]
[392970588,1762188012408,-156.612198,0.00030137,31]
[392970589,1762188012442,-151.0,0.00030137,31]
[392970590,1762188012474,-151.0,0.00030137,31]
[392970591,1762188012508,-155.204405,0.00030137,31]
[392970592,1762188012541,-151.0,0.00030137,31]
[392970593,1762188012575,-151.0,0.00030137,31]
[392970594,1762188012607,-151.0,0.00030137,31]
[392970595,1762188012640,-151.0,0.00030137,31]
[392970596,1762188012674,-151.0,0.00030137,31]
[392970597,1762188012710,-1368.063776,0.00030137,31]
[392970598,1762188012750,-1368.063776,0.00030137,31]
[392970599,1762188012787,-268.240452,0.00030137,31]
[392970600,1762188012822,-151.0,0.00030137,31]
[392970601,1762188012857,-1368.063776,0.00030137,31]
[392970602,1762188012890,-268.240452,0.00030137,31]
[392970603,1762188012923,-268.240452,0.00030137,31]
[392970604,1762188012956,-1368.063776,0.00030137,31]
[392970605,1762188012989,-268.240452,0.00030137,31]
[392970606,1762188013023,-1269.390705,0.00030137,30]
[392970607,1762188013059,-497.044052,0.00030137,30]
[392970608,1762188013095,-1269.390705,0.00030137,30]
[392970609,1762188013134,-497.044052,0.00030137,30]
[392970610,1762188013170,-152.313484,0.00030137,31]
[392970611,1762188013204,-151.0,0.00030137,31]
[392970612,1762188013238,-497.044052,0.00030137,30]
[392970613,1762188013275,-1269.390705,0.00030137,30]
[392970614,1762188013312,-497.044052,0.00030137,30]
[392970615,1762188013346,-1269.390705,0.00030137,30]
[392970616,1762188013382,-152.491941,0.00030137,31]
[392970617,1762188013417,-152.491941,0.00030137,31]
[392970618,1762188013452,-152.491941,0.00030137,31]
[392970619,1762188013489,-151.0,0.00030137,31]
[392970620,1762188013534,-152.491941,0.00030137,31]
[392970621,1762188013584,-220.631955,0.00030137,31]
[392970622,1762188013624,-220.631955,0.00030137,31]
[392970623,1762188013673,-151.0,0.00030137,31]
[392970624,1762188013724,-220.631955,0.00030137,31]
[392970625,1762188013795,-220.631955,0.00030137,31]
[392970626,1762188013857,-181.104071,0.00030137,31]
[392970627,1762188013904,-181.104071,0.00030137,31]
[392970628,1762188013941,-181.104071,0.00030137,31]
[392970629,1762188013975,-181.104071,0.00030137,31]
[392970630,1762188014012,-235.568692,0.00030137,31]
[392970631,1762188014047,-235.568692,0.00030137,31]
[392970632,1762188014081,-235.568692,0.00030137,31]
[392970633,1762188014117,-235.568692,0.00030137,31]
[392970634,1762188014159,-384.76,0.00031,30]
[392970635,1762188014192,-477.5520043,0.00031,120]
[392970636,1762188014228,-151.0,0.00031,31]
[392970637,1762188014263,-151.0,0.00031,31]
[392970638,1762188014298,-224.396973,0.00031,31]
[392970639,1762188014334,-224.396973,0.00031,31]
[392970640,1762188014368,-224.396973,0.00031,31]
[392970641,1762188014407,-224.396973,0.00031,31]
[392970642,1762188014447,-151.0,0.00031307,31]
[392970643,1762188014483,-151.0,0.00031307,31]
[392970645,1762188014516,-151.0,0.00031307,31]
[392970646,1762188014548,-166.425213,0.00031307,31]
[392970647,1762188014581,-151.0,0.00031307,31]
[392970648,1762188014612,-171.616614,0.00031307,31]
[392970649,1762188014644,-151.0,0.00031307,31]
[392970650,1762188014675,-151.0,0.00031307,31]
[392970651,1762188014709,-157.792133,0.00031307,31]
[392970652,1762188014746,-151.0,0.00031307,31]
[392970653,1762188014782,-203.250405,0.00031307,31]
[392970654,1762188014814,-203.250405,0.00031307,31]
[392970655,1762188014848,-203.250405,0.00031307,31]
[392970656,1762188014882,-203.250405,0.00031307,31]
[392970657,1762188014916,-232.565243,0.00031307,31]
[392970658,1762188014950,-232.565243,0.00031307,31]
[392970659,1762188014985,-232.565243,0.00031307,31]
[392970660,1762188015019,-232.565243,0.00031307,31]
[392970661,1762188015053,-151.0,0.00031307,31]
[392970662,1762188015086,-151.0,0.00031307,31]
[392970663,1762188015119,-151.0,0.00031307,31]
[392970664,1762188015150,-225.658521,0.00031307,31]
[392970665,1762188015399,-151.0,0.00031307,31]
[392970666,1762188015435,-235.830852,0.00031307,31]
[392970667,1762188015470,-235.830852,0.00031307,31]
[392970668,1762188015503,-235.830852,0.00031307,31]
[392970669,1762188015538,-235.830852,0.00031307,31]
[392970670,1762188015571,-156.911791,0.00031307,31]
[392970671,1762188015602,-151.0,0.00031307,31]
[392970672,1762188015635,-151.0,0.00031307,31]
[392970673,1762188015667,-151.0,0.00031307,31]
[392970674,1762188015699,-151.0,0.00031307,31]
[392970675,1762188015734,-151.0,0.00031307,31]